bitfinex-derivatives/quotes_ETHF0:USTF0_20250125
["timestamp","ask_amount","ask_price","bid_price","bid_amount"]
[1737773670191,3.33776041,3301.2,3301.1,0.00454496]
[1737773670490,7.3104587,3301.2,3301.1,0.00454496]
[1737773672184,4.98418829,3301.2,3301.1,0.00454496]
[1737773676389,0.48469,3301.2,3301.1,0.00454496]
[1737773677994,6.2048,3301.4,3301.2,0.48468]
[1737773679896,6.2048,3301.4,3301.1,1.50474496]
[1737773680288,3.2078,3301.4,3301.1,1.50474496]
[1737773680491,3.69247,3301.4,3301.1,1.02004496]
[1737773680993,0.48468,3301.3,3301.1,1.02004496]
[1737773681691,3.69247,3301.4,3301.1,1.02004496]
[1737773683797,3.69247,3301.4,3301.1,1.50474496]
[1737773684992,3.69247,3301.4,3301.1,1.02004496]
[1737773685997,3.69247,3301.4,3301.1,1.50475496]
[1737773686196,3.69247,3301.4,3301.1,1.02004496]
[1737773686404,3.69247,3301.4,3301.1,1.50474496]
[1737773689004,3.69247,3301.4,3300.6,4.73631447]
[1737773689005,2.81096041,3301.2,3300.6,4.73631447]
[1737773689209,3.2078,3300.7,3300.6,7.08588298]
[1737773689403,3.69256,3300.7,3300.6,7.08588298]
[1737773689603,11.01883041,3300.7,3300.6,4.10615875]
[1737773689905,0.48479,3300.5,3300.4,8.24478742]
[1737773690298,5.53355131,3300.5,3300.4,7.62419742]
[1737773690503,5.53355131,3300.5,3300.4,6.35120742]
[1737773690805,9.86620188,3300.5,3300.4,6.35120742]
[1737773691007,9.86620188,3300.5,3300.4,4.01461742]
[1737773691413,9.47348572,3300.5,3300.4,4.01461742]
[1737773691706,9.47348572,3300.5,3300.4,3.64101742]
[1737773692604,9.47348572,3300.5,3300.1,0.00454496]
[1737773692605,8.98869572,3300.5,3300.1,0.00454496]
[1737773692802,3.93993091,3300.5,3300.1,0.00454496]
[1737773693002,4.42474091,3300.5,3300.1,0.00454496]
[1737773693195,0.48484,3300.2,3300.1,0.00454496]
[1737773694601,4.41882383,3300.2,3300.1,0.00454496]
[1737773695200,7.91822383,3300.2,3300.1,0.00454496]
[1737773698110,7.41582383,3300.2,3300.1,0.00454496]
[1737773703217,8.36982383,3300.2,3300.1,0.00454496]
[1737773706217,11.57762383,3300.2,3300.1,0.00454496]
[1737773707314,10.62362383,3300.2,3300.1,0.00454496]
[1737773707522,11.57762383,3300.2,3300.1,0.00454496]
[1737773708021,11.09278383,3300.2,3300.1,0.00454496]
[1737773708224,10.13878383,3300.2,3300.1,0.00454496]
[1737773708417,6.2048,3300.2,3300.1,0.48939496]
[1737773708622,5.4128,3300.2,3300.1,0.48939496]
[1737773712721,5.89764,3300.2,3300.1,0.00454496]
[1737773712920,3.69264,3300.2,3300.1,0.00454496]
[1737773713617,7.55547662,3300.2,3300.1,0.00454496]
[1737773719320,7.07063662,3300.2,3300.1,0.00454496]
[1737773719521,3.69264,3300.2,3300.1,0.00454496]
[1737773721231,7.59080363,3300.2,3300.1,0.00454496]
[1737773726726,8.07960363,3300.2,3300.1,0.00454496]
[1737773729136,7.59080363,3300.2,3300.1,0.00454496]
[1737773729438,7.59080363,3300.2,3300.1,0.49654496]
[1737773731035,7.59080363,3300.2,3300.1,0.00454496]
[1737773731831,8.0322738,3300.2,3300.1,0.00454496]
[1737773732040,8.03227696,3300.2,3300.1,0.00454496]
[1737773733236,8.27537177,3300.2,3300.1,0.00454496]
[1737773734233,0.48496,3299.4,3299.3,1.5219]
[1737773734438,0.48505,3298.8,3298.6,4.76682487]
[1737773734632,0.48505,3298.8,3298.7,1.5321]
[1737773735444,2.33081537,3299.1,3298.7,1.5321]
[1737773735739,3.69282,3299.0,3298.7,1.5321]
[1737773735945,7.67925893,3299.0,3298.7,1.5321]
[1737773736339,0.48504,3298.9,3298.7,1.5321]
[1737773736535,7.19423893,3299.0,3298.7,1.5321]
[1737773736736,7.19423893,3299.0,3298.7,2.01715]
[1737773736938,3.2078,3299.0,3298.7,2.01715]
[1737773737437,0.00454496,3299.1,3298.7,2.01715]
[1737773738140,0.00454496,3299.1,3298.7,1.5321]
[1737773738347,0.48504,3298.9,3298.7,1.5321]
[1737773738538,0.48504,3298.8,3298.7,1.5321]
[1737773738733,2.81131041,3298.8,3298.7,1.5321]
[1737773738940,6.67837603,3298.8,3298.7,1.5321]
[1737773741443,3.86706562,3298.8,3298.7,1.5321]
[1737773741645,3.2078,3299.0,3298.8,0.48504]
[1737773741848,0.00454496,3299.1,3298.7,2.01715]
[1737773742539,0.00454496,3299.1,3298.8,0.48504]
[1737773743642,5.53407041,3299.4,3299.0,0.48501]
[1737773743643,3.2078,3299.4,3299.0,0.48501]
[1737773743841,3.2078,3299.4,3299.1,0.485]
[1737773744849,4.1618,3299.5,3299.2,0.48498]
[1737773745042,3.2078,3299.5,3299.2,0.48498]
[1737773745443,3.69274,3299.5,3298.7,4.2293]
[1737773745745,3.69274,3299.5,3299.0,0.485]
[1737773746046,3.69274,3299.5,3298.7,4.2293]
[1737773746246,3.69274,3299.5,3299.1,0.485]
[1737773746448,3.2078,3299.5,3299.2,0.48498]
[1737773746939,3.2078,3299.5,3299.3,0.5249]
[1737773747144,3.2078,3299.5,3299.4,0.9997]
[1737773747441,0.48947496,3299.6,3299.4,0.9997]
[1737773747645,0.00454496,3299.6,3299.4,0.9997]
[1737773747847,3.2078,3300.3,3300.0,0.48486]
[1737773748146,3.2078,3300.3,3300.1,1.0367]
[1737773750850,3.69262,3300.3,3300.1,1.0367]
[1737773751050,3.69262,3300.3,3300.2,0.4795]
[1737773751254,6.01889041,3300.3,3300.2,0.4795]
[1737773751549,9.90311443,3300.3,3300.2,0.4795]
[1737773754151,0.48484,3300.2,3300.1,1.0367]
[1737773754652,4.44880698,3300.2,3300.1,1.0367]
[1737773757151,3.96396698,3300.2,3299.6,0.498]
[1737773757354,3.96396698,3300.2,3299.7,0.5219]
[1737773757355,0.4849,3299.8,3299.7,0.5219]
[1737773762169,3.2078,3299.9,3299.6,0.9812]
[1737773762375,0.48491,3299.7,3299.6,0.9812]
[1737773762674,2.81118041,3299.7,3299.6,0.9812]
[1737773764473,0.48497,3299.3,3299.2,0.4924]
[1737773764771,0.48497,3299.3,3299.1,0.4822]
[1737773764772,0.48498,3299.2,3299.1,0.4822]
[1737773768678,1.43897,3299.4,3299.1,0.4822]
[1737773768880,0.48497,3299.3,3299.1,0.4822]
[1737773770081,0.48497,3299.3,3299.2,0.4889]
[1737773770281,0.48497,3299.3,3299.2,1.015]
[1737773770684,3.2078,3299.5,3299.2,1.015]
[1737773770887,3.2078,3299.5,3299.3,0.48497]
[1737773772281,0.48491,3299.7,3299.3,0.48497]
[1737773775283,0.48491,3299.7,3299.4,0.48495]
[1737773777883,6.48807041,3300.0,3299.4,0.48495]
[1737773778085,0.4849,3299.8,3299.4,0.48495]
[1737773778382,0.48491,3299.7,3299.4,0.48495]
[1737773780787,0.48491,3299.7,3299.3,0.48496]
[1737773781079,3.88566,3299.9,3299.2,1.015]
[1737773781285,0.48493,3299.6,3299.3,0.48497]
[1737773781782,0.48493,3299.6,3299.2,1.49998]
[1737773782382,0.48493,3299.6,3299.3,0.48496]
[1737773782776,0.48493,3299.6,3299.3,0.48497]
[1737773782984,6.48807041,3300.0,3299.2,1.015]
[1737773783184,0.48496,3299.4,3299.2,1.015]
[1737773783684,4.00738801,3299.9,3299.2,1.49998]
[1737773783885,0.48496,3299.4,3299.2,1.015]
[1737773784085,0.48496,3299.4,3299.2,1.49998]
[1737773786584,3.2078,3300.4,3299.3,3.2078]
[1737773786788,3.2078,3300.4,3300.2,0.48483]
[1737773786977,0.48779623,3300.5,3300.3,1.5004]
[1737773786978,0.00299623,3300.5,3300.3,1.5004]
[1737773787484,0.00299623,3300.5,3300.3,1.98522]
[1737773788283,0.48779623,3300.5,3300.3,1.5004]
[1737773788792,3.69262,3300.4,3300.1,0.00454496]
[1737773789088,0.48482,3300.3,3300.1,0.00454496]
[1737773790888,0.48484,3300.2,3300.1,0.00454496]
[1737773791089,4.35198603,3300.2,3300.1,0.00454496]
[1737773791591,5.35388603,3300.2,3300.1,0.00454496]
[1737773791784,1.48674,3300.2,3300.1,0.00454496]
[1737773792696,3.2078,3300.4,3300.1,0.00454496]
[1737773793090,3.2078,3300.4,3300.2,0.48483]
[1737773793287,3.2078,3300.4,3300.3,0.508]
[1737773797300,0.48484,3300.2,3300.1,0.00454496]
[1737773801407,3.2078,3300.4,3300.1,0.00454496]
[1737773801903,3.2078,3300.4,3300.3,0.48482]
[1737773802603,0.00299623,3300.5,3300.1,2.33081537]
[1737773802801,0.00299623,3300.5,3300.4,3.69261]
[1737773803799,8.32300056,3301.2,3300.9,0.48472]
[1737773804000,8.32300056,3301.2,3301.0,0.9847]
[1737773804303,8.32300056,3301.2,3301.0,1.46941]
[1737773805206,8.32300056,3301.2,3301.0,0.9847]
[1737773805602,3.69248,3301.3,3301.0,0.9847]
[1737773806197,0.48471,3301.1,3301.0,0.4862]
[1737773806419,6.35115539,3301.2,3301.0,0.4862]
[1737773806420,4.02488498,3301.2,3301.0,0.4862]
[1737773806606,4.02488498,3301.2,3301.0,0.97091]
[1737773806907,3.2078,3301.3,3301.0,0.97091]
[1737773807099,3.2078,3301.3,3301.1,0.5044]
[1737773807299,3.2078,3301.3,3301.2,0.5007]
[1737773809511,0.48469,3301.2,3301.1,0.5044]
[1737773809705,3.2078,3301.3,3301.0,0.4862]
[1737773810009,0.48471,3301.1,3301.0,0.4862]
[1737773811106,2.85107041,3301.2,3300.6,0.48477]
[1737773811310,0.48472,3301.0,3300.6,0.96508]
[1737773814815,0.48474,3300.9,3300.6,0.4803]
[1737773815518,0.48476,3300.7,3300.6,0.4803]
[1737773815915,3.69256,3300.7,3300.6,0.4803]
[1737773816208,3.2078,3300.7,3300.1,0.00454496]
[1737773816413,0.48481,3300.4,3300.1,0.00454496]
[1737773818114,0.48483,3300.3,3300.1,0.00454496]
[1737773819115,3.33467041,3300.6,3300.1,0.00454496]
[1737773819320,0.48484,3300.3,3300.1,0.00454496]
[1737773820317,0.48484,3300.2,3300.1,0.00454496]
[1737773821220,3.99576689,3300.5,3300.1,0.00454496]
[1737773821431,2.32627041,3300.9,3300.1,0.00454496]
[1737773821621,0.4848,3300.5,3300.1,0.48938496]
[1737773822126,0.48481,3300.4,3300.1,0.00454496]
[1737773822331,0.48483,3300.3,3300.1,0.00454496]
[1737773822622,0.48482,3300.4,3300.1,0.00454496]
[1737773826130,4.40915107,3300.5,3300.1,0.00454496]
[1737773826331,0.48484,3300.2,3300.1,0.00454496]
[1737773827123,4.43748791,3300.2,3300.1,0.00454496]
[1737773831620,5.39148791,3300.2,3300.1,0.00454496]
[1737773832328,3.95264791,3300.2,3300.1,0.00454496]
[1737773832520,6.48807041,3300.3,3300.1,0.00454496]
[1737773832721,6.48807041,3300.3,3300.1,0.99674496]
[1737773832932,6.48807041,3300.3,3300.1,1.51414496]
[1737773833736,3.28027041,3300.3,3300.1,1.51414496]
[1737773835937,3.76510041,3300.3,3300.1,1.51414496]
[1737773836534,3.28027041,3300.3,3300.1,1.51414496]
[1737773836736,3.69264,3300.2,3300.1,1.51414496]
[1737773838232,3.69264,3300.2,3300.1,0.50874496]
[1737773838738,3.2078,3300.2,3300.1,0.50874496]
[1737773839237,3.69264,3300.2,3300.1,0.50874496]
[1737773841338,3.2078,3300.2,3300.1,0.50874496]
[1737773842838,3.69264,3300.2,3300.1,0.50874496]
[1737773844828,3.69264,3300.2,3300.1,0.00454496]
[1737773845038,3.69264,3300.2,3299.1,4.7016]
[1737773845039,1.69702,3300.1,3299.1,4.7016]
[1737773845241,0.48496,3299.4,3299.1,4.7016]
[1737773845835,3.69275,3299.5,3299.1,4.7016]
[1737773846031,3.69275,3299.5,3299.1,1.9788]
[1737773847138,0.48498,3299.3,3299.1,1.4938]
[1737773847740,6.6720584,3299.4,3299.1,1.4938]
[1737773848040,3.7322,3299.5,3299.1,1.4938]
[1737773848041,3.69275,3299.5,3299.1,1.97879]
[1737773850136,3.69275,3299.5,3299.1,1.4938]
[1737773850436,0.48496,3299.4,3299.1,1.4938]
[1737773850636,0.48497,3299.3,3299.1,1.4938]
[1737773852153,6.18005259,3299.4,3299.1,1.4938]
[1737773852450,6.66501259,3299.4,3299.1,1.4938]
[1737773853054,2.81123041,3299.4,3299.1,1.4938]
[1737773853540,2.32627041,3299.4,3299.1,1.4938]
[1737773853746,2.32627041,3299.4,3299.2,0.48498]
[1737773853947,2.32627041,3299.4,3299.1,1.97879]
[1737773854149,2.81124041,3299.4,3299.1,1.4938]
[1737773855152,2.32627041,3299.4,3299.1,1.4938]
[1737773855350,0.485,3299.1,3299.0,0.00454496]
[1737773855552,6.01907041,3299.1,3299.0,0.00454496]
[1737773855956,9.95144738,3299.1,3299.0,0.00454496]
[1737773858949,14.95144738,3299.1,3299.0,0.00454496]
[1737773859557,10.00012123,3299.1,3299.0,0.00454496]
[1737773859961,14.51512123,3299.1,3297.5,4.76682487]
[1737773860258,2.32627041,3297.9,3297.6,1.5016]
[1737773860953,0.954,3298.1,3297.8,0.48518]
[1737773861354,0.954,3298.1,3297.7,0.4852]
[1737773862050,1.43915,3298.1,3297.6,1.98681]
[1737773862764,0.954,3298.1,3297.6,1.98681]
[1737773864060,1.43915,3298.1,3297.6,1.98681]
[1737773865256,0.48517,3298.0,3297.6,1.5016]
[1737773865556,0.954,3298.1,3297.6,1.5016]
[1737773865764,0.48518,3297.9,3297.6,1.5016]
[1737773868261,0.4852,3297.8,3297.6,1.5016]
[1737773868659,0.48521,3297.7,3297.6,1.5016]
[1737773869266,3.2078,3297.9,3297.6,1.5016]
[1737773869557,0.4852,3297.8,3297.6,1.5016]
[1737773869762,3.2078,3297.9,3297.6,1.98681]
[1737773869963,3.2078,3297.9,3297.8,0.48519]
[1737773870264,3.2078,3297.9,3297.7,0.4852]
[1737773870960,3.2078,3297.9,3297.6,1.5016]
[1737773871159,3.69298,3297.9,3297.6,1.5016]
[1737773871360,0.4852,3297.8,3297.6,1.5016]
[1737773873968,6.01925041,3297.9,3297.6,1.5016]
[1737773874164,4.46748836,3297.7,3297.6,1.5016]
[1737773874366,4.46748836,3297.7,3297.6,0.5082]
[1737773874561,0.48523,3297.6,3297.4,0.00454496]
[1737773874768,6.01930041,3297.5,3297.4,0.00454496]
[1737773875670,5.53407041,3297.5,3297.4,0.00454496]
[1737773876864,6.01930041,3297.5,3297.4,0.00454496]
[1737773877671,5.53407041,3297.5,3297.4,0.00454496]
[1737773881279,6.01930041,3297.5,3297.4,0.00454496]
[1737773882070,5.53407041,3297.5,3297.4,0.00454496]
[1737773883266,3.2078,3297.5,3297.4,0.00454496]
[1737773883467,3.20609698,3297.5,3297.4,0.00454496]
[1737773883673,0.48521,3297.7,3297.4,0.00454496]
[1737773883874,1.44021,3297.7,3297.4,0.00454496]
[1737773884774,4.00792682,3297.6,3297.4,0.00454496]
[1737773886476,4.49314682,3297.6,3297.4,0.00454496]
[1737773887781,2.32627041,3297.5,3297.4,0.00454496]
[1737773887978,2.81150041,3297.5,3297.4,0.00454496]
[1737773888875,9.88203069,3297.5,3297.4,0.00454496]
[1737773891385,9.88203069,3297.5,3295.6,16.56940148]
[1737773891386,0.48535,3296.7,3296.6,1.49]
[1737773891682,6.01942041,3296.7,3296.6,1.49]
[1737773891879,5.53407041,3296.7,3296.6,1.49]
[1737773894584,0.955,3296.8,3296.6,1.49]
[1737773894990,0.955,3296.8,3296.6,1.97537]
[1737773895590,0.955,3296.8,3296.6,1.49]
[1737773895791,0.955,3296.8,3296.6,1.97536]
[1737773895992,0.955,3296.8,3296.6,1.49]
[1737773896192,0.955,3296.8,3296.7,0.48535]
[1737773897193,3.2078,3297.1,3296.9,0.48532]
[1737773897987,3.2078,3297.1,3296.8,0.48534]
[1737773898384,3.2078,3297.1,3296.9,0.48532]
[1737773900191,3.2078,3297.1,3297.0,0.48531]
[1737773900383,2.32627041,3297.3,3297.0,0.48531]
[1737773900587,2.32627041,3297.3,3296.6,1.49]
[1737773900588,0.48531,3297.1,3296.6,1.49]
[1737773900787,2.32627041,3296.7,3296.6,1.49]
[1737773901296,3.2078,3296.8,3296.6,1.49]
[1737773901488,6.29181042,3297.0,3296.7,0.48534]
[1737773901891,3.96554001,3297.0,3296.6,1.49]
[1737773902099,3.2078,3297.2,3296.8,0.48533]
[1737773902695,3.28127041,3297.3,3296.8,0.48533]
[1737773903092,3.76654041,3297.3,3296.8,0.48533]
[1737773903497,3.28127041,3297.3,3296.8,0.48533]
[1737773903798,3.76654041,3297.3,3296.8,0.48533]
[1737773904992,3.28127041,3297.3,3296.6,1.49]
[1737773905299,3.28127041,3297.3,3296.9,0.48531]
[1737773906395,3.28127041,3297.3,3297.0,0.48531]
[1737773906597,3.28127041,3297.3,3297.1,0.5068]
[1737773906797,3.28127041,3297.3,3297.2,1.0269]
[1737773907301,6.48907041,3297.6,3297.2,1.51217]
[1737773907498,5.53407041,3297.6,3297.2,1.51217]
[1737773907992,5.53407041,3297.6,3297.2,1.0269]
[1737773909391,5.53407041,3297.6,3297.2,1.51217]
[1737773909591,5.53407041,3297.6,3296.6,3.2078]
[1737773909893,5.53407041,3297.6,3297.1,0.48529]
[1737773910089,5.53407041,3297.6,3297.2,0.5278]
[1737773910289,5.53407041,3297.6,3297.3,1.0356]
[1737773910696,0.5162,3297.5,3297.3,1.0356]
[1737773911088,5.53407041,3297.6,3297.3,1.0356]
[1737773911493,6.05027041,3297.6,3297.3,1.0356]
[1737773913196,6.53550041,3297.6,3297.3,1.0356]
[1737773913795,0.48524,3297.5,3297.3,1.0356]
[1737773915807,0.48538,3296.5,3296.4,4.76682487]
[1737773915997,6.98845041,3296.5,3296.4,4.76682487]
[1737773916195,6.98845041,3296.5,3296.4,2.18673812]
[1737773916396,10.88032254,3296.5,3296.4,2.18673812]
[1737773916701,15.88032254,3296.5,3296.4,0.82173812]
[1737773917006,0.4854,3296.4,3296.3,4.96e-06]
[1737773917199,0.53400545,3296.4,3296.3,4.96e-06]
[1737773917394,9.44358552,3296.4,3296.3,4.96e-06]
[1737773917902,4.80201697,3296.4,3296.3,4.96e-06]
[1737773918607,4.39498007,3296.4,3296.3,4.96e-06]
[1737773920500,1.21354,3296.3,3294.7,3.2078]
[1737773920803,1.21354,3296.3,3295.2,0.4817]
[1737773920804,2.32627041,3295.4,3295.2,0.4817]
[1737773921502,2.32627041,3295.4,3295.2,0.96727]
[1737773921706,0.00455194,3295.6,3295.3,0.48555]
[1737773923503,0.00455194,3295.6,3295.4,0.5083]
[1737773926402,3.2078,3295.8,3295.5,0.48553]
[1737773926603,3.2078,3295.8,3295.6,0.5107]
[1737773927304,5.53407041,3295.8,3295.6,0.5107]
[1737773927504,0.4855,3295.7,3295.6,0.5107]
[1737773928803,6.01956041,3295.8,3295.6,0.5107]
[1737773932811,0.4855,3295.7,3295.6,0.5107]
[1737773933118,6.01956041,3295.8,3295.6,0.5107]
[1737773937214,5.53407041,3295.8,3295.6,0.5107]
[1737773937413,3.2078,3295.8,3295.6,0.5107]
[1737773937616,0.00455194,3296.0,3295.9,0.48547]
[1737773937812,0.00455194,3296.0,3295.6,3.4947]
[1737773938011,0.4855,3295.7,3295.6,3.4947]
[1737773938412,7.62024346,3295.7,3295.6,3.4947]
[1737773941824,7.62024346,3295.7,3295.6,0.5107]
[1737773942619,7.13474346,3295.7,3295.6,0.5107]
[1737773943027,3.2078,3295.7,3295.6,0.5107]
[1737773943723,2.32627041,3295.8,3295.6,0.5107]
[1737773944031,0.00455194,3296.0,3295.6,0.5107]
[1737773944525,0.00455194,3296.0,3295.9,0.48547]
[1737773945120,2.32627041,3296.1,3296.0,0.48546]
[1737773945635,2.32627041,3296.1,3296.0,1.00286]
[1737773946235,2.32627041,3296.1,3296.0,0.5174]
[1737773948335,2.32627041,3296.1,3296.0,1.0018]
[1737773948536,2.32627041,3296.1,3296.0,1.48726]
[1737773950139,2.32627041,3296.1,3296.0,1.0018]
[1737773950739,2.32627041,3296.1,3296.0,1.48726]
[1737773951542,2.32627041,3296.1,3296.0,1.0018]
[1737773952241,2.32627041,3296.1,3296.0,1.48726]
[1737773956533,2.33082235,3296.4,3296.0,1.0018]
[1737773956738,0.00455194,3296.4,3296.3,0.48541]
[1737773962252,0.00455194,3296.4,3296.3,1.00571]
[1737773963147,2.33082235,3296.4,3296.3,0.5203]
[1737773963337,0.48544,3296.1,3296.0,1.0018]
[1737773963542,2.81171041,3296.1,3296.0,1.0018]
[1737773965055,2.81171041,3296.1,3296.0,0.4844]
[1737773966356,0.48546,3296.0,3295.7,0.4801]
[1737773966546,0.49036,3296.0,3295.7,0.4801]
[1737773966950,0.48547,3295.9,3295.6,1.003]
[1737773967253,0.0049,3296.0,3295.7,0.4855]
[1737773967456,0.0049,3296.0,3295.6,1.48851]
[1737773967457,0.49036,3296.0,3295.6,1.48851]
[1737773968951,0.0049,3296.0,3295.6,1.003]
[1737773969147,3.28527041,3296.1,3295.6,1.003]
[1737773969347,3.28527041,3296.1,3295.8,0.48547]
[1737773969957,0.959,3296.1,3296.0,0.48546]
[1737773970357,0.959,3296.1,3295.9,0.48546]
[1737773970553,0.959,3296.1,3296.0,0.4798]
[1737773971153,3.28527041,3296.1,3296.0,0.4798]
[1737773973158,2.32627041,3296.1,3296.0,0.4798]
[1737773980360,2.81171041,3296.1,3296.0,0.4798]
[1737773983964,2.32627041,3296.1,3295.6,1.003]
[1737773984257,0.4855,3295.7,3295.6,1.003]
[1737773989162,2.81177041,3295.8,3295.6,1.003]
[1737773989367,3.2078,3296.2,3295.6,1.003]
[1737773989368,3.28127041,3296.1,3295.6,1.003]
[1737773989556,3.28127041,3296.1,3295.8,0.48547]
[1737773989760,3.28127041,3296.1,3295.9,0.4854]
[1737773990366,3.28127041,3296.1,3296.0,0.4786]
[1737773991665,2.33082235,3296.4,3296.0,0.4786]
[1737773991862,2.33082235,3296.4,3296.1,0.48543]
[1737773992068,2.33082235,3296.4,3296.2,0.4935]
[1737773992363,0.00455194,3296.4,3296.2,0.4935]
[1737773992569,0.00455194,3296.4,3296.3,0.48541]
[1737773992965,0.00455194,3296.4,3296.2,0.4935]
[1737773993269,0.00455194,3296.4,3296.2,0.97892]
[1737773994258,0.00455194,3296.4,3296.2,0.4935]
[1737773994463,0.00455194,3296.4,3296.2,0.97892]
[1737773994865,0.00455194,3296.4,3296.3,0.48541]
[1737774000772,3.2078,3297.0,3296.3,8.51807041]
[1737774000976,3.2078,3297.0,3296.9,0.48532]
[1737774001173,3.2078,3297.0,3296.3,6.1918]
[1737774001869,3.21234724,3297.0,3296.3,6.1918]
[1737774002275,3.21234724,3297.0,3296.8,0.48533]
[1737774002571,3.21234724,3297.0,3296.9,1.001]
[1737774002772,3.21234724,3297.0,3296.9,1.48632]
[1737774003366,5.53861765,3297.0,3296.9,0.4993]
[1737774003565,0.48536,3296.7,3296.4,0.97839]
[1737774003771,0.48536,3296.7,3296.4,1.47379]
[1737774003969,0.48537,3296.7,3296.5,0.5013]
[1737774004472,0.48537,3296.7,3296.5,0.98668]
[1737774004672,0.48537,3296.7,3296.5,0.5013]
[1737774004880,0.48537,3296.7,3296.5,0.98668]
[1737774005771,9.56866788,3297.0,3296.5,0.5013]
[1737774005973,0.48532,3296.9,3296.5,0.98668]
[1737774006168,0.48549,3295.8,3295.7,7.11681578]
[1737774006374,6.49207041,3295.8,3295.4,11.80980497]
[1737774006579,2.32627041,3295.5,3295.3,7.11681578]
[1737774007474,7.20402436,3295.8,3295.3,7.11681578]
[1737774007676,3.28427041,3296.1,3295.4,3.2078]
[1737774007979,3.28427041,3296.1,3295.7,0.48549]
[1737774008167,3.28427041,3296.1,3295.8,1.0119]
[1737774008371,3.28427041,3296.1,3295.8,1.536]
[1737774008574,3.28427041,3296.1,3295.8,2.02148]
[1737774010279,3.76971041,3296.1,3295.8,1.536]
[1737774010577,3.28427041,3296.1,3295.8,1.536]
[1737774010773,3.28427041,3296.1,3295.8,2.02148]
[1737774012985,3.28427041,3296.1,3295.8,0.5024]
[1737774013183,3.28427041,3296.1,3295.0,3.21235194]
[1737774013184,3.2078,3295.9,3295.2,1.5452]
[1737774013480,2.32627041,3295.4,3295.2,1.5452]
[1737774014079,2.81183041,3295.4,3295.2,0.4967]
[1737774014377,0.48556,3295.3,3295.2,0.4967]
[1737774014585,4.38801847,3295.3,3295.0,3.21235194]
[1737774015484,3.90245847,3295.3,3295.0,3.69795194]
[1737774015782,4.38802847,3295.3,3295.0,3.21235194]
[1737774015977,3.90245847,3295.3,3295.0,3.69794194]
[1737774016378,4.38801847,3295.3,3295.0,3.69794194]
[1737774016986,3.90245847,3295.3,3295.0,3.21235194]
[1737774017283,2.32627041,3295.7,3295.5,0.48553]
[1737774017479,2.32627041,3295.7,3295.6,1.49411]
[1737774017687,2.32627041,3296.0,3295.6,1.0086]
[1737774017983,2.32627041,3296.0,3295.9,0.48547]
[1737774018884,2.32627041,3296.0,3295.7,0.5226]
[1737774019187,2.32627041,3296.0,3295.7,1.0081]
[1737774019384,2.32627041,3296.0,3295.8,0.48548]
[1737774020487,2.32627041,3296.0,3295.8,0.48547]
[1737774020884,2.32627041,3296.3,3295.7,0.5226]
[1737774021083,2.32627041,3296.3,3296.2,0.48543]
[1737774021284,3.2078,3296.4,3295.7,0.5226]
[1737774021589,2.32627041,3296.9,3296.7,0.48534]
[1737774021786,2.32627041,3296.9,3296.8,0.4931]
[1737774022887,2.32627041,3296.9,3296.8,0.97844]
[1737774025990,2.32627041,3296.9,3296.8,0.4931]
[1737774027579,2.32627041,3296.9,3296.8,0.97844]
[1737774028591,2.32627041,3296.9,3296.8,0.4931]
[1737774029189,2.32627041,3296.9,3296.8,0.9698]
[1737774029390,2.32627041,3296.9,3296.8,1.45514]
[1737774030396,2.32627041,3296.9,3296.8,0.9698]
[1737774030896,0.00454724,3297.0,3296.9,0.48532]
[1737774031094,0.00454724,3297.0,3296.9,1.00022]
[1737774032699,2.32627041,3297.2,3297.1,0.48529]
[1737774033695,2.32627041,3297.2,3296.9,0.5149]
[1737774033991,2.32627041,3297.2,3297.0,0.4853]
[1737774037497,2.32627041,3297.2,3296.9,1.00021]
[1737774037705,2.32627041,3297.2,3297.0,0.4853]
[1737774037905,2.32627041,3297.2,3296.9,0.5149]
[1737774038101,0.48531,3297.0,3296.9,0.5149]
[1737774038298,3.2078,3297.1,3296.8,0.97435194]
[1737774038609,2.81159041,3296.9,3296.8,0.97435194]
[1737774039497,2.81159041,3296.9,3296.8,0.49765194]
[1737774039807,2.81159041,3296.9,3296.8,0.00455194]
[1737774044904,2.32627041,3296.9,3296.8,0.00455194]
[1737774045105,2.32627041,3296.9,3296.8,0.48989194]
[1737774047928,5.53407041,3297.5,3296.8,0.00455194]
[1737774048228,3.2078,3297.5,3297.4,0.48525]
[1737774048623,5.53407041,3297.5,3297.3,0.48526]
[1737774049019,5.53407041,3297.5,3297.2,0.48528]
[1737774049020,2.32627041,3297.5,3297.2,0.48528]
[1737774049223,2.32627041,3297.5,3297.3,0.48525]
[1737774049431,2.32627041,3297.5,3297.4,0.48525]
[1737774051934,2.32627041,3297.8,3297.4,0.48524]
[1737774052134,2.32627041,3297.8,3297.5,0.5215]
[1737774052633,2.32627041,3297.8,3297.5,1.00673]
[1737774053534,2.32627041,3297.8,3297.6,0.5269]
[1737774053735,2.32627041,3297.8,3297.7,0.5084]
[1737774060638,5.53407041,3298.4,3297.7,0.5084]
[1737774060841,0.48513,3298.2,3297.7,0.5084]
[1737774061037,0.48513,3298.2,3297.7,0.9936]
[1737774061435,0.48515,3298.1,3297.7,0.9936]
[1737774061637,0.48514,3298.2,3297.7,0.9936]
[1737774061835,6.48907041,3298.4,3297.7,0.9936]
[1737774061836,0.48515,3298.1,3297.7,0.9936]
[1737774062138,0.48512,3298.3,3297.7,0.9936]
[1737774062332,0.48514,3298.2,3297.7,0.9936]
[1737774062536,2.32627041,3298.1,3297.7,0.9936]
[1737774062729,2.32627041,3298.1,3297.7,0.5084]
[1737774062936,0.48518,3297.9,3297.7,0.5084]
[1737774065347,0.48519,3297.8,3297.7,0.5084]
[1737774066440,2.81146041,3297.8,3297.7,0.5084]
[1737774066643,0.48521,3297.7,3297.6,0.5269]
[1737774068342,2.32627041,3297.8,3297.1,0.5074]
[1737774068539,0.48527,3297.3,3297.2,0.4862]
[1737774068943,2.32627041,3297.5,3297.2,0.4862]
[1737774069148,0.48526,3297.4,3297.2,0.4862]
[1737774070446,0.48526,3297.3,3297.2,0.4862]
[1737774070650,4.89903455,3297.3,3297.0,0.5007]
[1737774070850,2.81156041,3297.1,3297.0,0.5007]